fUST/lending_fUST_20240529
["ID","MTS","AMOUNT","RATE_DAILY","PERIOD"]
[328133732,1716923440238,-500.0,0.00021917,2]
[328133733,1716923440247,-500.0,0.00021917,2]
[328133734,1716923440257,-500.0,0.00021917,2]
[328133735,1716923440267,-500.0,0.00021917,2]
[328133736,1716923440276,-500.0,0.00021917,2]
[328133737,1716923440288,-500.0,0.00021917,2]
[328133738,1716923440296,-557.81,0.00021917,2]
[328133739,1716923440306,-500.0,0.00021917,2]
[328133740,1716923440314,-500.0,0.00021917,2]
[328133741,1716923440324,-500.0,0.00021917,2]
[328133742,1716923440333,-500.0,0.00021917,2]
[328133743,1716923440343,-500.0,0.00021917,2]
[328133744,1716923440353,-502.53605204,0.00021917,2]
[328133745,1716923440362,-500.0,0.00021917,2]
[328133746,1716923440372,-500.0,0.00021917,2]
[328133747,1716923440382,-500.0,0.00021917,2]
[328133748,1716923440391,-500.0,0.00021917,2]
[328133749,1716923440401,-501.08968362,0.00021917,2]
[328133750,1716923440411,-1607.92,0.00021917,2]
[328133751,1716923440420,-229.66474203,0.00021917,2]
[328133752,1716923440430,-500.0,0.00021917,2]
[328133753,1716923440439,-500.0,0.00021917,2]
[328133754,1716923440449,-500.0,0.00021917,2]
[328133755,1716923440459,-500.0,0.00021917,2]
[328133756,1716923440468,-500.91265698,0.00021917,2]
[328133757,1716923440478,-507.58,0.00021917,2]
[328133758,1716923440487,-500.0,0.00021917,2]
[328133759,1716923440497,-983.31,0.00021917,2]
[328133760,1716923440506,-500.0,0.00021917,2]
[328133761,1716923440516,-500.0,0.00021917,2]
[328133762,1716923440525,-500.0,0.00021917,2]
[328133763,1716923440534,-1385.02,0.00021917,2]
[328133764,1716923440547,-510.07398423,0.00021917,2]
[328133765,1716923440556,-500.0,0.00021917,2]
[328133766,1716923440565,-500.0,0.00021917,2]
[328133767,1716923440575,-283.97002268,0.00021917,2]
[328133768,1716923440584,-502.23969394,0.00021917,2]
[328133769,1716923440593,-663.31,0.00021917,2]
[328133770,1716923440602,-500.0,0.00021917,2]
[328133771,1716923440611,-500.0,0.00021917,2]
[328133772,1716923440621,-500.0,0.00021917,2]
[328133773,1716923440630,-500.0,0.00021917,2]
[328133774,1716923440640,-500.0,0.00021917,2]
[328133775,1716923440649,-500.0,0.00021917,2]
[328133776,1716923440659,-984.65,0.00021917,2]
[328133777,1716923440668,-276.33513343,0.00021917,2]
[328133778,1716923440679,-500.0,0.00021917,2]
[328133779,1716923440688,-500.79140484,0.00021917,2]
[328133780,1716923440699,-171.62748783,0.00021917,2]
[328133781,1716923440708,-500.0,0.00021917,2]
[328133782,1716923440718,-1376.94,0.00021917,2]
[328133783,1716923440728,-500.0,0.00021917,2]
[328133784,1716923440738,-500.0,0.00021917,2]
[328133785,1716923440748,-500.0,0.00021917,2]
[328133786,1716923440758,-500.0,0.00021917,2]
[328133787,1716923440768,-370.49249752,0.00021917,2]
[328133788,1716923440777,-500.0,0.00021917,2]
[328133789,1716923440792,-1106.9,0.00021917,2]
[328133790,1716923440801,-500.0,0.00021917,2]
[328133791,1716923440810,-500.0,0.00021917,2]
[328133792,1716923440820,-788.82,0.00021917,2]
[328133793,1716923440830,-500.00529662,0.00021917,2]
[328133794,1716923440839,-500.0,0.00021917,2]
[328133795,1716923440849,-500.0,0.00021917,2]
[328133796,1716923440859,-666.29,0.00021917,2]
[328133797,1716923440869,-300.0,0.00021917,2]
[328133798,1716923440879,-634.05917856,0.00021917,2]
[328133799,1716923440888,-1299.97,0.00021917,2]
[328133800,1716923440898,-594.15,0.00021917,2]
[328133801,1716923440907,-576.91,0.00021917,2]
[328133802,1716923440916,-639.65,0.00021917,2]
[328133803,1716923440926,-181.20058023,0.00021917,2]
[328133804,1716923440935,-500.0,0.00021917,2]
[328133805,1716923440944,-1098.37,0.00021917,2]
[328133806,1716923440954,-500.0,0.00021917,2]
[328133807,1716923440963,-500.0,0.00021917,2]
[328133808,1716923440972,-500.0,0.00021917,2]
[328133809,1716923440982,-740.46,0.00021917,2]
[328133810,1716923440992,-721.19,0.00021917,2]
[328133811,1716923441001,-500.0,0.00021917,2]
[328133812,1716923441011,-500.0,0.00021917,2]
[328133813,1716923441020,-500.0,0.00021917,2]
[328133814,1716923441030,-1011.07,0.00021917,2]
[328133815,1716923441042,-500.0,0.00021917,2]
[328133816,1716923441057,-2000.0,0.00021917,5]
[328133817,1716923441066,-500.0,0.00021917,2]
[328133818,1716923441075,-500.0,0.00021917,2]
[328133819,1716923441086,-771.04,0.00021917,2]
[328133820,1716923441096,-500.0,0.00021917,2]
[328133822,1716923441105,-500.0,0.00021917,2]
[328133824,1716923441115,-500.0,0.00021917,2]
[328133826,1716923441124,-500.0,0.00021917,2]
[328133827,1716923441135,-500.0,0.00021917,2]
[328133828,1716923441145,-583.45243324,0.00021917,2]
[328133829,1716923441154,-500.0,0.00021917,2]
[328133830,1716923441163,-500.0,0.00021917,2]
[328133831,1716923441172,-500.0,0.00021917,2]
[328133832,1716923441182,-500.0,0.00021917,2]
[328133833,1716923441192,-1327.41,0.00021917,2]
[328133834,1716923441202,-500.0,0.00021917,2]
[328133835,1716923441211,-401.76237892,0.00021917,2]
[328133836,1716923441221,-500.0,0.00021917,2]
[328133837,1716923441230,-500.0,0.00021917,2]
[328133838,1716923441240,-500.0,0.00021917,2]
[328133839,1716923441249,-500.0,0.00021917,2]
[328133840,1716923441259,-500.0,0.00021917,2]
[328133841,1716923441269,-500.0,0.00021917,2]
[328133842,1716923441278,-2308.67,0.00021917,2]
[328133843,1716923441290,-533.11,0.00021917,2]
[328133844,1716923441299,-500.0,0.00021917,2]
[328133845,1716923441308,-1378.57,0.00021917,2]
[328133846,1716923441317,-500.0,0.00021917,2]
[328133847,1716923441326,-500.0,0.00021917,2]
[328133848,1716923441335,-500.0,0.00021917,2]
[328133849,1716923441344,-586.81,0.00021917,2]
[328133850,1716923441353,-507.04,0.00021917,2]
[328133851,1716923441363,-500.0,0.00021917,2]
[328133852,1716923441372,-1800.0,0.00021917,4]
[328133853,1716923441382,-1800.0,0.00021917,4]
[328133854,1716923441391,-1800.0,0.00021917,4]
[328133855,1716923441401,-1800.0,0.00021917,4]
[328133856,1716923441410,-1800.0,0.00021917,4]
[328133857,1716923441419,-1800.0,0.00021917,4]
[328133858,1716923441429,-1800.0,0.00021917,4]
[328133859,1716923441438,-1800.0,0.00021917,4]
[328133860,1716923441447,-1800.0,0.00021917,4]
[328133861,1716923441457,-1800.0,0.00021917,4]
[328133862,1716923441466,-1800.0,0.00021917,4]
[328133863,1716923441475,-1800.0,0.00021917,4]
[328133864,1716923441484,-1800.0,0.00021917,4]
[328133865,1716923441494,-1800.0,0.00021917,4]
[328133866,1716923441503,-504.64,0.00021917,4]
[328133867,1716923441512,-1735.01,0.00021917,2]
[328133868,1716923441521,-500.0,0.00021917,2]
[328133869,1716923441530,-2078.6,0.00021917,2]
[328133870,1716923441543,-500.0,0.00021917,2]
[328133871,1716923441551,-500.0,0.00021917,2]
[328133872,1716923441560,-500.0,0.00021917,2]
[328133873,1716923441569,-500.0,0.00021917,2]
[328133874,1716923441578,-503.36,0.00021917,2]
[328133875,1716923441586,-4590.97,0.00021917,2]
[328133876,1716923441595,-500.0,0.00021917,2]
[328133877,1716923441605,-500.0,0.00021917,2]
[328133878,1716923441614,-500.0,0.00021917,2]
[328133879,1716923441623,-500.0,0.00021917,2]
[328133880,1716923441633,-500.0,0.00021917,2]
[328133881,1716923441642,-5142.59,0.00021917,2]
[328133882,1716923441651,-904.87,0.00021917,2]
[328133883,1716923441660,-500.0,0.00021917,2]
[328133884,1716923441668,-500.0,0.00021917,2]
[328133885,1716923441678,-1458.8,0.00021917,2]
[328133886,1716923441687,-500.0,0.00021917,2]
[328133887,1716923441695,-500.0,0.00021917,2]
[328133888,1716923441704,-975.74,0.00021917,2]
[328133889,1716923441713,-500.0,0.00021917,2]
[328133890,1716923441722,-500.0,0.00021917,2]
[328133891,1716923441731,-500.0,0.00021917,2]
[328133892,1716923441740,-500.0,0.00021917,2]
[328133893,1716923441749,-767.85,0.00021917,2]
[328133894,1716923441758,-7843.92,0.00021917,2]
[328133895,1716923441767,-500.0,0.00021917,2]
[328133896,1716923441776,-500.0,0.00021917,2]
[328133897,1716923441787,-6949.54,0.00021917,2]
[328133898,1716923441796,-890.09,0.00021917,2]
[328133899,1716923441955,-500.0,0.00021917,2]
[328133900,1716923441965,-935.88,0.00021917,2]
[328133901,1716923441974,-516.93,0.00021917,2]
[328133902,1716923441983,-1919.53,0.00021917,2]
[328133903,1716923441993,-500.0,0.00021917,2]
[328133904,1716923442003,-553.61,0.00021917,2]
[328133905,1716923442012,-500.0,0.00021917,2]
[328133906,1716923442021,-2204.09,0.00021917,2]
[328133907,1716923442031,-500.0,0.00021917,2]
[328133908,1716923442043,-674.99,0.00021917,2]
[328133909,1716923442056,-500.0,0.00021917,2]
[328133910,1716923442065,-500.0,0.00021917,2]
[328133911,1716923442075,-508.35,0.00021917,2]
[328133912,1716923442084,-500.0,0.00021917,2]
[328133913,1716923442094,-703.74,0.00021917,2]
[328133914,1716923442104,-500.0,0.00021917,2]
[328133915,1716923442113,-500.0,0.00021917,2]
[328133916,1716923442123,-500.0,0.00021917,2]
[328133917,1716923442133,-500.0,0.00021917,2]
[328133918,1716923442143,-500.0,0.00021917,2]
[328133919,1716923442152,-500.0,0.00021917,2]
[328133920,1716923442161,-500.0,0.00021917,2]
[328133921,1716923442171,-647.97,0.00021917,2]
[328133922,1716923442180,-500.0,0.00021917,2]
[328133923,1716923442189,-500.0,0.00021917,2]
[328133924,1716923442198,-227.15404205,0.00021917,2]
[328133926,1716923442289,-2277.08595795,0.00021917,2]
[328133928,1716923442298,-666.25,0.00021917,2]
[328133929,1716923442308,-500.0,0.00021917,2]
[328133930,1716923442318,-500.0,0.00021917,2]
[328133931,1716923442327,-500.0,0.00021917,2]
[328133932,1716923442336,-500.0,0.00021917,2]
[328133933,1716923442346,-166.666666,0.00021918,2]
[328133934,1716923442355,-7912.5130197,0.00021918,2]
[328133935,1716923442364,-33267.26496194,0.00021979,7]
[328133936,1716923442374,-2000.0,0.00022091,2]
[328133937,1716923442383,-181.78854909,0.00022092,2]
[328133938,1716923442395,-418.21145091,0.00022092,2]
[328133939,1716923442404,-2143.51277158,0.00022093,2]
[328133953,1716923444133,-36.34746636,0.00022093,2]
[328133954,1716923444670,-465.6713912,0.00022093,2]
[328133955,1716923444683,-392.1959995,0.00022093,2]
[328133978,1716923446723,-500.0,0.00021917,2]
[328133980,1716923446733,-727.31538152,0.00022093,2]
[328133996,1716924427191,-309.78316417,0.00015684,2]
[328133997,1716924440106,-564.39549791,0.00015684,2]
[328133998,1716924443090,-263.2238754,0.00015684,2]
[328133999,1716924443111,-143.76215706,0.00019305,2]
[328134000,1716924446096,-209.28559963,0.00019305,2]
[328134001,1716924447168,-810.70565614,0.00019305,2]
[328134002,1716924454150,-302.0,0.00019305,2]
[328134201,1716924636927,-1067.45756705,0.000189,2]
[328134203,1716924636937,-234.54243295,0.00019149,2]
[328134205,1716924636948,-166.34931645,0.00019149,2]
[328134207,1716924636958,-154.92253873,0.00019305,2]
[328134209,1716924636967,-165.2441,0.00019411,2]
[328134211,1716924636976,-151.0,0.00019596,3]
[328134213,1716924636985,-1258.16465698,0.00020912,2]
[328134215,1716924636995,-157.40785376,0.00020912,2]
[328134217,1716924637004,-205.96395918,0.00020912,2]
[328134219,1716924637013,-305.47375868,0.00020912,2]
[328134221,1716924637022,-319.6383763,0.00020912,2]
[328134223,1716924637032,-264.72992472,0.00020913,2]
[328134225,1716924637041,-977.8592982,0.00020913,2]
[328134227,1716924637052,-280.0,0.00021,2]
[328134229,1716924637061,-1144.17653548,0.00021,2]
[328134231,1716924637071,-462.29064873,0.00021773,2]
[328134233,1716924637080,-169.61011297,0.00021817,2]
[328134235,1716924637089,-431.96,0.00021907,3]
[328134237,1716924637098,-385.39528159,0.00021916,2]
[328134239,1716924637108,-500.0,0.00021916,2]
[328134241,1716924637117,-500.0,0.00021916,2]
[328134243,1716924637127,-500.0,0.00021917,2]
[328134245,1716924637136,-152.48515141,0.00021917,2]
[328134247,1716924637145,-552.22922913,0.00021917,2]
[328134249,1716924637154,-194.30280247,0.00021917,2]
[328134251,1716924637163,-300.0,0.00021917,2]
[328134253,1716924637173,-755.95,0.00021917,2]
[328134255,1716924637182,-500.0,0.00021917,2]
[328134257,1716924637191,-569.4,0.00021917,2]
[328134259,1716924637200,-242.21160235,0.00021917,2]
[328134261,1716924637209,-500.0,0.00021917,2]
[328134263,1716924637219,-709.6,0.00021917,2]
[328134265,1716924637228,-500.0,0.00021917,2]
[328134267,1716924637237,-2000.0,0.00021917,5]
[328134269,1716924637245,-500.0,0.00021917,2]
[328134271,1716924637255,-500.0,0.00021917,2]
[328134273,1716924637264,-500.0,0.00021917,2]
[328134275,1716924637273,-500.0,0.00021917,2]
[328134277,1716924637282,-638.49,0.00021917,2]
[328134279,1716924637291,-500.0,0.00021917,2]
[328134281,1716924637302,-635.67,0.00021917,2]
[328134283,1716924637312,-500.0,0.00021917,2]
[328134285,1716924637322,-1327.31,0.00021917,2]
[328134287,1716924637332,-500.0,0.00021917,2]
[328134289,1716924637341,-500.0,0.00021917,2]
[328134291,1716924637351,-500.0,0.00021917,2]
[328134293,1716924637360,-500.0,0.00021917,2]
[328134295,1716924637370,-500.0,0.00021917,2]
[328134297,1716924637379,-596.24019616,0.00021917,2]
[328134298,1716924637389,-500.0,0.00021917,2]
[328134300,1716924637398,-1319.57,0.00021917,2]
[328134302,1716924637408,-500.0,0.00021917,2]
[328134304,1716924637418,-943.62,0.00021917,2]
[328134306,1716924637429,-500.0,0.00021917,2]
[328134308,1716924637438,-555.24530235,0.00021917,2]
[328134310,1716924637451,-500.0,0.00021917,2]
[328134311,1716924637461,-500.0,0.00021917,2]
[328134313,1716924637471,-500.0,0.00021917,2]
[328134316,1716924637483,-500.0,0.00021917,2]
[328134317,1716924637493,-1060.78,0.00021917,2]
[328134319,1716924637503,-638.53,0.00021917,2]
[328134321,1716924637512,-500.0,0.00021917,2]
[328134323,1716924637522,-500.00871655,0.00021917,2]
[328134325,1716924637535,-500.0,0.00021917,2]
[328134327,1716924637545,-1245.81,0.00021917,2]
[328134329,1716924637555,-552.87,0.00021917,2]
[328134331,1716924637564,-500.0,0.00021917,2]
[328134333,1716924637574,-500.0,0.00021917,2]
[328134335,1716924637584,-612.99,0.00021917,2]
[328134337,1716924637593,-500.0,0.00021917,2]
[328134339,1716924637603,-1052.61,0.00021917,2]
[328134341,1716924637613,-500.0,0.00021917,2]
[328134343,1716924637623,-523.05,0.00021917,2]
[328134344,1716924637633,-507.59063073,0.00021917,2]
[328134346,1716924637643,-500.0,0.00021917,2]
[328134348,1716924637652,-330.00537681,0.00021917,2]
[328134350,1716924637661,-500.0,0.00021917,2]
[328134352,1716924637673,-500.0,0.00021917,2]
[328134354,1716924637683,-691.14,0.00021917,2]
[328134356,1716924637693,-500.0,0.00021917,2]
[328134358,1716924637702,-500.0,0.00021917,2]
[328134360,1716924637712,-500.0,0.00021917,2]
[328134362,1716924637722,-968.94,0.00021917,2]
[328134364,1716924637731,-500.0,0.00021917,2]
[328134366,1716924637741,-500.0,0.00021917,2]
[328134368,1716924637751,-563.50752891,0.00021917,2]
[328134370,1716924637761,-647.41091799,0.00021917,2]
[328134372,1716924637770,-738.91,0.00021917,2]
[328134374,1716924637780,-500.0,0.00021917,2]
[328134376,1716924637789,-500.0,0.00021917,2]
[328134378,1716924637799,-500.0,0.00021917,2]
[328134380,1716924637809,-500.0,0.00021917,2]
[328134382,1716924637819,-500.0,0.00021917,2]
[328134384,1716924637829,-500.0,0.00021917,2]
[328134386,1716924637838,-500.0,0.00021917,2]
[328134388,1716924637847,-593.52980715,0.00021917,2]
[328134390,1716924637857,-1272.1,0.00021917,2]
[328134392,1716924637867,-500.0,0.00021917,2]
[328134394,1716924637876,-500.0,0.00021917,2]
[328134396,1716924637885,-500.0,0.00021917,2]
[328134398,1716924637895,-500.0,0.00021917,2]
[328134400,1716924637904,-500.0,0.00021917,2]
[328134402,1716924637913,-500.0,0.00021917,2]
[328134404,1716924637921,-500.0,0.00021917,2]
[328134406,1716924637931,-2212.48,0.00021917,2]
[328134408,1716924637940,-620.98,0.00021917,2]
[328134410,1716924637950,-500.0,0.00021917,2]
[328134411,1716924637959,-500.0,0.00021917,2]
[328134413,1716924637969,-500.0,0.00021917,2]
[328134416,1716924637978,-500.0,0.00021917,2]
[328134418,1716924637988,-1321.13,0.00021917,2]
[328134420,1716924637998,-500.0,0.00021917,2]
[328134421,1716924638007,-534.57,0.00021917,2]
[328134423,1716924638016,-500.0,0.00021917,2]
[328134425,1716924638024,-500.0,0.00021917,2]
[328134427,1716924638033,-500.0,0.00021917,2]
[328134429,1716924638043,-500.0,0.00021917,2]
[328134432,1716924638053,-500.0,0.00021917,2]
[328134433,1716924638062,-1638.23374848,0.00021917,2]
[328134626,1716924643346,-596.142041,0.00021066,2]
[328134628,1716924643356,-24.48625152,0.00021917,2]
[328134631,1716924643366,-500.0,0.00021917,2]
[328134633,1716924643376,-1973.06466279,0.00021917,2]
[328134696,1716924645158,-18.92533721,0.00021917,2]
[328134698,1716924645168,-500.0,0.00021917,2]
[328134700,1716924645178,-500.0,0.00021917,2]
[328134702,1716924645187,-500.0,0.00021917,2]
[328134704,1716924645197,-500.0,0.00021917,2]
[328134706,1716924645207,-534.99330328,0.00021917,2]
[328134708,1716924645216,-500.0,0.00021917,2]
[328134710,1716924645225,-722.64,0.00021917,2]
[328134712,1716924645234,-477.86986877,0.00021917,2]
[328134714,1716924645244,-500.0,0.00021917,2]
[328134716,1716924645253,-1833.2,0.00021917,2]
[328134718,1716924645263,-500.0,0.00021917,2]
[328134720,1716924645272,-182.2468897,0.00021917,2]
[328134902,1716924647300,-719.79,0.00021917,2]
[328134904,1716924647312,-33.0431103,0.00021917,2]
[328134906,1716924647323,-4928.32,0.00021917,2]
[328134908,1716924647332,-500.0,0.00021917,2]
[328134910,1716924647343,-500.0,0.00021917,2]
[328134913,1716924647354,-500.0,0.00021917,2]
[328134914,1716924647363,-500.0,0.00021917,2]
[328134916,1716924647374,-500.0,0.00021917,2]
[328134918,1716924647384,-1398.02,0.00021917,2]
[328134920,1716924647393,-500.0,0.00021917,2]
[328134922,1716924647402,-1540.92,0.00021917,2]
[328134924,1716924647412,-853.0,0.00021917,2]
[328134926,1716924647421,-530.54,0.00021917,2]
[328134928,1716924647431,-735.86,0.00021917,2]
[328134930,1716924647441,-500.0,0.00021917,2]
[328134932,1716924647453,-500.0,0.00021917,2]
[328134934,1716924647462,-500.0,0.00021917,2]
[328134936,1716924647471,-7517.09,0.00021917,2]
[328134938,1716924647481,-500.0,0.00021917,2]
[328134940,1716924647491,-500.0,0.00021917,2]
[328134942,1716924647501,-2112.26,0.00021917,2]
[328134944,1716924647511,-500.0,0.00021917,2]
[328134946,1716924647521,-500.0,0.00021917,2]
[328134948,1716924647533,-500.0,0.00021917,2]
[328134950,1716924647543,-1839.55,0.00021917,2]
[328134952,1716924647553,-6659.98,0.00021917,2]
[328134954,1716924647564,-623.00017755,0.00021917,2]
[328134955,1716924647574,-411.35396445,0.00021917,2]
[328134956,1716924647583,-500.0,0.00021917,2]
[328134957,1716924647593,-500.0,0.00021917,2]
[328134958,1716924647603,-896.88,0.00021917,2]
[328134959,1716924647612,-674.41,0.00021917,2]
[328134960,1716924647623,-153.00461969,0.00021917,2]
[328134961,1716924647633,-500.0,0.00021917,2]
[328134962,1716924647643,-500.0,0.00021917,2]
[328134963,1716924647654,-500.0,0.00021917,2]
[328134964,1716924647664,-500.0,0.00021917,2]
[328134965,1716924647675,-2399.89,0.00021917,2]
[328134966,1716924647684,-646.87,0.00021917,2]
[328134967,1716924647694,-500.0,0.00021917,2]
[328134968,1716924647704,-942.34,0.00021917,2]
[328134969,1716924647714,-500.0,0.00021917,2]
[328134970,1716924647724,-510.89,0.00021917,2]
[328134971,1716924647734,-500.0,0.00021917,2]
[328134973,1716924647744,-500.0,0.00021917,2]
[328134975,1716924647754,-500.0,0.00021917,2]
[328134977,1716924647765,-500.0,0.00021917,2]
[328134978,1716924647774,-500.0,0.00021917,2]
[328134980,1716924647785,-166.666666,0.00021918,2]
[328134982,1716924647795,-5776.28889315,0.00022,2]
[328134983,1716924647809,-600.0,0.00022092,2]
[328134984,1716924647818,-3983.08440167,0.00022093,2]
[328134985,1716924647828,-12820.89291007,0.00022093,2]
[328134986,1716924647838,-461.34904634,0.00022093,2]
[328134987,1716924647847,-282.0,0.000221,2]
[328134988,1716924647857,-16633.63248097,0.00022191,7]
[328134989,1716924647866,-5764.11697635,0.00022191,7]
[328134990,1716924647877,-300.0,0.00022191,2]
[328134991,1716924647887,-755.95,0.00022191,2]
[328134992,1716924647897,-500.0,0.00022191,2]
[328134993,1716924647906,-569.4,0.00022191,2]
[328134994,1716924647917,-500.0,0.00022191,2]
[328134995,1716924647926,-709.6,0.00022191,2]
[328134996,1716924647936,-500.0,0.00022191,2]
[328134997,1716924647945,-2000.0,0.00022191,5]
[328134998,1716924647955,-500.0,0.00022191,2]
[328134999,1716924647965,-500.0,0.00022191,2]
[328135000,1716924647975,-500.0,0.00022191,2]
[328135001,1716924647984,-500.0,0.00022191,2]
[328135002,1716924647994,-638.49,0.00022191,2]
[328135003,1716924648003,-635.67,0.00022191,2]
[328135004,1716924648013,-391.19,0.00022191,2]
[328135005,1716924648023,-1327.31,0.00022191,2]
[328135006,1716924648033,-500.0,0.00022191,2]
[328135007,1716924648042,-500.0,0.00022191,2]
[328135008,1716924648052,-500.0,0.00022191,2]
[328135009,1716924648063,-500.0,0.00022191,2]
[328135010,1716924648073,-500.0,0.00022191,2]
[328135011,1716924648082,-500.0,0.00022191,2]
[328135012,1716924648091,-1319.57,0.00022191,2]
[328135013,1716924648100,-500.0,0.00022191,2]
[328135014,1716924648110,-943.62,0.00022191,2]
[328135015,1716924648120,-500.0,0.00022191,2]
[328135016,1716924648130,-500.0,0.00022191,2]
[328135017,1716924648139,-500.0,0.00022191,2]
[328135018,1716924648149,-500.0,0.00022191,2]
[328135019,1716924648158,-500.0,0.00022191,2]
[328135020,1716924648168,-1060.78,0.00022191,2]
[328135021,1716924648178,-638.53,0.00022191,2]
[328135022,1716924648188,-500.0,0.00022191,2]
[328135023,1716924648197,-500.0,0.00022191,2]
[328135024,1716924648208,-1245.81,0.00022191,2]
[328135025,1716924648217,-552.87,0.00022191,2]
[328135026,1716924648227,-500.0,0.00022191,2]
[328135027,1716924648238,-500.0,0.00022191,2]
[328135028,1716924648248,-612.99,0.00022191,2]
[328135029,1716924648258,-500.0,0.00022191,2]
[328135030,1716924648268,-1052.61,0.00022191,2]
[328135031,1716924648277,-500.0,0.00022191,2]
[328135032,1716924648287,-523.05,0.00022191,2]
[328135033,1716924648296,-500.0,0.00022191,2]
[328135034,1716924648309,-500.0,0.00022191,2]
[328135035,1716924648319,-500.0,0.00022191,2]
[328135036,1716924648328,-691.14,0.00022191,2]
[328135037,1716924648338,-500.0,0.00022191,2]
[328135038,1716924648348,-500.0,0.00022191,2]
[328135039,1716924648358,-291.56788502,0.00022191,2]
[328135040,1716924648368,-968.94,0.00022191,2]
[328135041,1716924648378,-500.0,0.00022191,2]
[328135042,1716924648387,-487.64515274,0.00022191,2]
[328135043,1716924648397,-738.91,0.00022191,2]
[328135044,1716924648407,-500.0,0.00022191,2]
[328135045,1716924648416,-500.0,0.00022191,2]
[328135046,1716924648426,-500.0,0.00022191,2]
[328135047,1716924648436,-500.0,0.00022191,2]
[328135048,1716924648450,-500.0,0.00022191,2]
[328135049,1716924648463,-500.0,0.00022191,2]
[328135050,1716924648473,-500.0,0.00022191,2]
[328135051,1716924648482,-1272.1,0.00022191,2]
[328135052,1716924648498,-500.0,0.00022191,2]
[328135053,1716924648508,-500.0,0.00022191,2]
[328135054,1716924648517,-407.55746522,0.00022191,2]
[328135055,1716924648528,-500.0,0.00022191,2]
[328135056,1716924648538,-500.0,0.00022191,2]
[328135057,1716924648548,-500.0,0.00022191,2]
[328135058,1716924648560,-500.0,0.00022191,2]
[328135059,1716924648569,-2212.48,0.00022191,2]
[328135060,1716924648578,-620.98,0.00022191,2]
[328135061,1716924648587,-500.0,0.00022191,2]
[328135062,1716924648598,-500.0,0.00022191,2]
[328135063,1716924648607,-500.0,0.00022191,2]
[328135064,1716924648617,-500.0,0.00022191,2]
[328135065,1716924648627,-1321.13,0.00022191,2]
[328135066,1716924648636,-534.57,0.00022191,2]
[328135067,1716924648646,-500.0,0.00022191,2]
[328135068,1716924648656,-433.13433343,0.00022191,2]
[328135069,1716924648666,-500.0,0.00022191,2]
[328135070,1716924648676,-500.0,0.00022191,2]
[328135071,1716924648685,-1662.72,0.00022191,2]
[328135072,1716924648695,-500.0,0.00022191,2]
[328135073,1716924648704,-1991.99,0.00022191,2]
[328135074,1716924648714,-500.0,0.00022191,2]
[328135075,1716924648892,-248.23714168,0.00022191,2]
[328135076,1716924648902,-500.0,0.00022191,2]
[328135077,1716924648911,-500.0,0.00022191,2]
[328135078,1716924648921,-500.0,0.00022191,2]
[328135079,1716924648930,-722.64,0.00022191,2]
[328135080,1716924648939,-500.0,0.00022191,2]
[328135081,1716924648948,-1833.2,0.00022191,2]